fUST/lending_fUST_20240916
["ID","MTS","AMOUNT","RATE_DAILY","PERIOD"]
[338242605,1726416093870,10000.0,0.00012,10]
[338242606,1726416116002,1969.01,0.00012,10]
[338242668,1726416632526,-300.0,0.00021499,2]
[338242670,1726416632536,-300.0,0.00021499,2]
[338242672,1726416632545,-363.96,0.000215,2]
[338242765,1726416638678,-84082.77766454,0.000215,2]
[338242767,1726416638690,-302.97266596,0.0002151,2]
[338242768,1726416638700,-188.7902033,0.0002151,2]
[338242770,1726416638711,-500.0,0.0002151,2]
[338242772,1726416638722,-500.0,0.0002151,2]
[338242774,1726416638733,-500.0,0.0002151,2]
[338242776,1726416638744,-500.0,0.0002151,2]
[338242778,1726416638754,-622.64794138,0.0002151,2]
[338242780,1726416638765,-238.85459533,0.00021511,7]
[338242781,1726416638775,-505019.11320026,0.00021511,2]
[338242783,1726416638786,-24900.0,0.00021513,2]
[338242785,1726416638795,-500.0,0.000216,2]
[338242786,1726416638805,-250.0,0.00021754,2]
[338242788,1726416638815,-250.0,0.00021814,2]
[338242790,1726416638825,-250.0,0.00021874,2]
[338242792,1726416638836,-150.0,0.00021904,2]
[338242794,1726416638845,-250.0,0.00021933,2]
[338242795,1726416638855,-250.0,0.00021993,2]
[338242796,1726416638866,-150.01,0.00021999,2]
[338242797,1726416638876,-558.94018828,0.00021999,2]
[338242798,1726416638887,-153.0,0.00022,2]
[338242799,1726416638897,-153.0,0.00022,2]
[338242800,1726416638907,-250.0,0.00022053,2]
[338242801,1726416638917,-250.0,0.00022112,2]
[338242802,1726416638926,-250.0,0.00022172,2]
[338242803,1726416638937,-153.0,0.000222,2]
[338242804,1726416638948,-250.0,0.00022232,2]
[338242805,1726416638958,-250.0,0.00022291,2]
[338242806,1726416638968,-250.0,0.00022351,2]
[338242807,1726416638978,-250.0,0.00022411,2]
[338242808,1726416638990,-153.0,0.00022466,2]
[338242809,1726416639000,-153.0,0.00022466,2]
[338242810,1726416639010,-250.0,0.0002247,2]
[338242811,1726416639021,-250.0,0.0002253,2]
[338242812,1726416639031,-250.0,0.0002259,2]
[338242813,1726416639041,-180.0,0.00022594,2]
[338242814,1726416639050,-250.0,0.00022649,2]
[338242815,1726416639060,-248.21467901,0.00022657,7]
[338242816,1726416639070,-250.0,0.00022709,2]
[338242817,1726416639080,-250.0,0.00022769,2]
[338242818,1726416639090,-250.0,0.00022828,2]
[338242819,1726416639100,-250.0,0.00022888,2]
[338242820,1726416639110,-320.91489999,0.00023,5]
[338242821,1726416639120,-200.0,0.00023,2]
[338242822,1726416639131,-153.0,0.00023014,2]
[338242823,1726416639141,-153.0,0.00023014,2]
[338242824,1726416639151,-153.0,0.00023014,2]
[338242825,1726416639161,-153.6548387,0.00023014,2]
[338242826,1726416639171,-157.0,0.000231,8]
[338242827,1726416639181,-1929.77655826,0.000233,2]
[338242828,1726416639191,-36208.8967325,0.0002337,3]
[338242829,1726416639201,-79111.3304644,0.0002337,3]
[338242830,1726416639211,-420.0,0.00023374,2]
[338242831,1726416639221,-18104.4483662,0.00023379,3]
[338242832,1726416639236,-39555.6652322,0.00023379,3]
[338242833,1726416639246,-72417.793465,0.0002338,3]
[338242834,1726416639256,-74099.29999605,0.0002338,3]
[338242892,1726416640952,-27342.90489389,0.0002338,3]
[338242893,1726416641256,-40482.31945829,0.0002338,3]
[338242949,1726416646542,-262.86095665,0.00021999,2]
[338242952,1726416646555,-465.78349023,0.00021999,2]
[338242953,1726416646566,-16298.13658077,0.0002338,3]
[338242955,1726416646577,-10444.24,0.00023389,2]
[338242957,1726416646590,-18104.4483662,0.0002339,3]
[338242959,1726416646599,-39555.6652322,0.0002339,3]
[338242961,1726416646609,-18953.46942634,0.0002339,3]
[338243026,1726417595177,-162.73668677,0.00021136,2]
[338243058,1726417832890,-300.0,0.00021136,2]
[338243060,1726417832900,-300.0,0.00021136,2]
[338243062,1726417832911,-250.0,0.00021137,2]
[338243064,1726417832923,-605.719861,0.00021137,2]
[338243109,1726417838827,-24294.280139,0.00021137,2]
[338243110,1726417838837,-250.0,0.00021191,2]
[338243111,1726417838847,-250.0,0.00021249,2]
[338243112,1726417838857,-250.0,0.00021307,2]
[338243113,1726417838867,-250.0,0.00021365,2]
[338243114,1726417838877,-250.0,0.00021423,2]
[338243115,1726417838887,-3000.0,0.00021473,2]
[338243116,1726417838898,-486.078074,0.00021475,2]
[338243117,1726417838908,-486.078074,0.00021481,2]
[338243118,1726417838918,-250.0,0.00021481,2]
[338243119,1726417838929,-486.078074,0.00021487,2]
[338243120,1726417838939,-486.078074,0.00021492,2]
[338243121,1726417838949,-486.078074,0.00021498,2]
[338243122,1726417838959,-486.078074,0.00021504,2]
[338243123,1726417838970,-486.078074,0.00021509,2]
[338243124,1726417838980,-486.078074,0.00021515,2]
[338243125,1726417838990,-486.078074,0.00021521,2]
[338243126,1726417839000,-486.078074,0.00021526,2]
[338243127,1726417839010,-486.078074,0.00021532,2]
[338243128,1726417839020,-486.078074,0.00021538,2]
[338243129,1726417839030,-250.0,0.00021539,2]
[338243130,1726417839041,-486.078074,0.00021543,2]
[338243131,1726417839051,-486.078074,0.00021549,2]
[338243132,1726417839061,-486.078074,0.00021554,2]
[338243133,1726417839071,-486.078074,0.0002156,2]
[338243134,1726417839081,-486.078074,0.00021566,2]
[338243135,1726417839092,-486.078074,0.00021571,2]
[338243136,1726417839102,-486.078074,0.00021577,2]
[338243137,1726417839112,-486.078074,0.00021583,2]
[338243138,1726417839122,-250.0,0.00021597,2]
[338243139,1726417839132,-250.0,0.00021656,2]
[338243140,1726417839142,-250.0,0.00021714,2]
[338243141,1726417839152,-250.0,0.00021772,2]
[338243142,1726417839163,-250.0,0.0002183,2]
[338243143,1726417839173,-250.0,0.00021888,2]
[338243144,1726417839188,-250.0,0.00021946,2]
[338243145,1726417839198,-250.0,0.00022004,2]
[338243146,1726417839208,-250.0,0.00022062,2]
[338243147,1726417839218,-250.0,0.0002212,2]
[338243148,1726417839229,-250.0,0.00022179,2]
[338243149,1726417839243,-250.0,0.00022237,2]
[338243150,1726417839253,-250.0,0.00022295,2]
[338243151,1726417839264,-150.0,0.00022477,2]
[338243152,1726417839274,-7129.84878974,0.00022596,2]
[338243153,1726417839285,-180.0,0.00022639,2]
[338243154,1726417839295,-157.0,0.0002268,7]
[338243155,1726417839306,-150.0,0.00022953,2]
[338243156,1726417839316,-420.0,0.00022988,2]
[338243157,1726417839326,-7129.84878974,0.00022989,2]
[338243158,1726417839337,-200.0,0.00023,2]
[338243159,1726417839351,-7129.84878974,0.0002303,2]
[338243160,1726417839362,-150.0,0.0002324,2]
[338243161,1726417839372,-420.0,0.0002325,2]
[338243162,1726417839382,-2170.60487012,0.00023279,2]
[338243163,1726417839395,-2170.60487008,0.00023282,2]
[338243164,1726417839406,-2170.60487008,0.00023285,2]
[338243165,1726417839415,-2170.60487008,0.00023287,2]
[338243166,1726417839428,-2120.63358055,0.0002329,2]
[338243167,1726417839439,-2170.60487008,0.0002329,2]
[338243168,1726417839448,-50360.1619619,0.0002334,3]
[338243169,1726417839458,-33016.6075626,0.00023351,3]
[338243170,1726417839468,-50360.1619619,0.0002336,3]
[338243171,1726417839478,-212.08086617,0.00023369,2]
[338243172,1726417839488,-500.0,0.00023369,2]
[338243173,1726417839498,-500.0,0.00023369,2]
[338243174,1726417839508,-335.85355896,0.00023369,2]
[338243175,1726417839519,-500.0,0.00023369,2]
[338243176,1726417839529,-33016.6075626,0.00023369,3]
[338243177,1726417839539,-50360.1619619,0.00023369,3]
[338243178,1726417839549,-33016.6075626,0.0002337,3]
[338243179,1726417839559,-25205.65650275,0.0002337,3]
[338243206,1726417840648,-40482.31945829,0.0002337,3]
[338243226,1726417843667,-6023.49973493,0.0002337,3]
[338243254,1726417846627,-486.53655445,0.00022539,2]
[338243255,1726417846639,-29008.84822803,0.0002337,3]
[338243256,1726417846650,-10050.73,0.00023379,2]
[338243258,1726417846939,-159.23639689,0.00023379,7]
[338243259,1726417846956,-33016.6075626,0.0002338,3]
[338243260,1726417846966,-50360.1619619,0.0002338,3]
[338243261,1726417846976,-91131.38213067,0.0002338,3]
[338243314,1726418813115,-195.29266867,0.00020188,2]
[338243338,1726419031747,-300.0,0.00020188,2]
[338243339,1726419031758,-233.87068736,0.00020189,2]
[338243377,1726419038514,-24666.12931264,0.00020189,2]
[338243378,1726419038524,-315.950748,0.0002028,2]
[338243379,1726419038534,-315.950748,0.00020285,2]
[338243380,1726419038543,-315.950748,0.00020291,2]
[338243381,1726419038553,-315.950748,0.00020296,2]
[338243382,1726419038563,-315.950748,0.00020301,2]
[338243383,1726419038572,-315.950748,0.00020307,2]
[338243384,1726419038582,-250.0,0.00020309,2]
[338243385,1726419038592,-3000.0,0.00020309,2]
[338243386,1726419038601,-315.950748,0.00020312,2]
[338243387,1726419038611,-315.950748,0.00020317,2]
[338243388,1726419038622,-315.950748,0.00020323,2]
[338243389,1726419038631,-315.950748,0.00020328,2]
[338243390,1726419038642,-315.950748,0.00020333,2]
[338243391,1726419038651,-315.950748,0.00020339,2]
[338243392,1726419038660,-315.950748,0.00020344,2]
[338243393,1726419038670,-315.950748,0.00020349,2]
[338243394,1726419038679,-315.950748,0.00020355,2]
[338243395,1726419038689,-315.950748,0.0002036,2]
[338243396,1726419038699,-315.950748,0.00020365,2]
[338243397,1726419038708,-315.950748,0.00020371,2]
[338243398,1726419038719,-1204.5729277,0.00020374,2]
[338243399,1726419038741,-315.950748,0.00020376,2]
[338243400,1726419038755,-315.950748,0.00020381,2]
[338243401,1726419038768,-10973.4539388,0.00020426,2]
[338243402,1726419038780,-378.1131676,0.00020486,2]
[338243403,1726419038790,-250.0,0.00020759,2]
[338243404,1726419038803,-250.0,0.00020815,2]
[338243405,1726419038815,-250.0,0.00020872,2]
[338243406,1726419038825,-170.553713,0.00020927,2]
[338243407,1726419038837,-250.0,0.00020929,2]
[338243408,1726419038849,-170.553713,0.00020979,2]
[338243409,1726419038861,-250.0,0.00020986,2]
[338243410,1726419038873,-170.553713,0.00021031,2]
[338243411,1726419038884,-937.62674681,0.00021036,2]
[338243412,1726419038895,-192.7658216,0.00021036,2]
[338243413,1726419038905,-250.0,0.00021043,2]
[338243414,1726419038915,-250.0,0.000211,2]
[338243415,1726419038928,-250.0,0.00021157,2]
[338243416,1726419038938,-250.0,0.00021214,2]
[338243417,1726419038948,-250.0,0.00021271,2]
[338243418,1726419038957,-250.0,0.00021328,2]
[338243419,1726419038968,-250.0,0.00021385,2]
[338243420,1726419038978,-250.0,0.00021442,2]
[338243421,1726419038988,-250.0,0.00021499,2]
[338243422,1726419038998,-250.0,0.00021556,2]
[338243423,1726419039008,-250.0,0.00021612,2]
[338243424,1726419039019,-250.0,0.00021669,2]
[338243425,1726419039029,-250.0,0.00021726,2]
[338243426,1726419039039,-250.0,0.00021783,2]
[338243427,1726419039049,-250.0,0.0002184,2]
[338243428,1726419039059,-150.0,0.00022,2]
[338243429,1726419039070,-420.0,0.00022207,2]
[338243430,1726419039080,-382.71500942,0.0002259,2]
[338243431,1726419039090,-150.0,0.00022594,2]
[338243432,1726419039100,-7129.84878974,0.00022673,2]
[338243433,1726419039110,-180.0,0.0002269,2]
[338243434,1726419039122,-150.0,0.00022872,2]
[338243435,1726419039134,-157.0,0.0002292,7]
[338243436,1726419039146,-382.71500942,0.00022935,2]
[338243437,1726419039159,-200.0,0.00023,2]
[338243438,1726419039172,-7129.84878974,0.00023004,2]
[338243439,1726419039184,-150.0,0.00023037,2]
[338243440,1726419039195,-7129.84878974,0.00023076,2]
[338243441,1726419039205,-2203.7959321,0.0002327,2]
[338243442,1726419039217,-2203.7959321,0.00023275,2]
[338243443,1726419039229,-382.71500942,0.0002328,2]
[338243444,1726419039240,-2203.7959321,0.0002328,2]
[338243445,1726419039250,-2203.7959321,0.00023285,2]
[338243446,1726419039261,-2203.7959321,0.0002329,2]
[338243447,1726419039270,-849.98448107,0.0002329,2]
[338243448,1726419039280,-2120.63358055,0.000233,2]
[338243449,1726419039291,-26809.2080779,0.00023369,3]
[338243450,1726419039301,-37276.2293463,0.00023369,3]
[338243453,1726419039312,-159.61194869,0.00023373,2]
[338243454,1726419039322,-500.0,0.00023378,2]
[338243455,1726419039339,-500.0,0.00023378,2]
[338243456,1726419039350,-500.0,0.00023378,2]
[338243457,1726419039362,-349.22497215,0.00023378,2]
[338243459,1726419039373,-249.35335448,0.00023379,2]
[338243460,1726419039383,-26809.2080779,0.00023379,3]
[338243461,1726419039394,-37276.2293463,0.00023379,3]
[338243462,1726419039405,-248.0,0.0002338,2]
[338243463,1726419039415,-53618.4161558,0.0002338,3]
[338243465,1726419039424,-74552.4586926,0.0002338,3]
[338243467,1726419039434,-150.01,0.00023388,2]
[338243469,1726419039444,-481.30960657,0.00023388,2]
[338243470,1726419039455,-500.0,0.00023389,2]
[338243471,1726419039465,-500.0,0.00023389,2]
[338243472,1726419039475,-285.09749127,0.00023389,2]
[338243474,1726419039485,-550.75606769,0.00023389,2]
[338243476,1726419039496,-3571.71831965,0.00023389,2]
[338243479,1726419039512,-6081.07168035,0.00023389,2]
[338243480,1726419039524,-428.73467049,0.0002339,3]
[338243504,1726419039869,-40482.31945829,0.0002339,3]
[338243505,1726419039881,-2054.6944135,0.0002339,3]
[338243528,1726419042918,-21.69918541,0.0002339,3]
[338243669,1726420239988,-165.317325,0.00019272,2]
[338243670,1726420239997,-24900.0,0.0002026,2]
[338243671,1726420240007,-250.0,0.00020306,2]
[338243672,1726420240019,-159.1449546,0.00020333,2]
[338243673,1726420240030,-250.0,0.00020821,2]
[338243674,1726420240041,-250.0,0.00020878,2]
[338243675,1726420240051,-250.0,0.00020936,2]
[338243676,1726420240063,-250.0,0.00020993,2]
[338243677,1726420240074,-250.0,0.0002105,2]
[338243678,1726420240083,-250.0,0.00021107,2]
[338243679,1726420240093,-250.0,0.00021164,2]
[338243680,1726420240102,-250.0,0.00021221,2]
[338243681,1726420240112,-250.0,0.00021278,2]
[338243682,1726420240122,-300.0,0.00021301,2]
[338243683,1726420240131,-300.0,0.00021301,2]
[338243684,1726420240142,-250.0,0.00021335,2]
[338243685,1726420240152,-250.0,0.00021392,2]
[338243686,1726420240162,-250.0,0.00021449,2]
[338243687,1726420240171,-250.0,0.00021507,2]
[338243688,1726420240184,-250.0,0.00021564,2]
[338243689,1726420240195,-250.0,0.00021621,2]
[338243690,1726420240204,-250.0,0.00021678,2]
[338243691,1726420240214,-250.0,0.00021735,2]
[338243692,1726420240225,-250.0,0.00021792,2]
[338243693,1726420240235,-250.0,0.00021849,2]
[338243694,1726420240245,-250.0,0.00021906,2]
[338243695,1726420240254,-168.0,0.00022,2]
[338243696,1726420240263,-7431.0,0.0002237,7]
[338243697,1726420240273,-2224.17450369,0.00022592,2]
[338243698,1726420240300,-4905.67428605,0.00022592,2]
[338243699,1726420240311,-150.0,0.00022604,2]
[338243700,1726420240321,-180.0,0.0002272,2]
[338243701,1726420240331,-7129.84878974,0.00022761,2]
[338243702,1726420240340,-382.71500942,0.000229,2]
[338243703,1726420240350,-1936.27300488,0.00023,3]
[338243774,1726420243229,-23763.72699512,0.00023,3]
[338243775,1726420243239,-2001.985,0.00023,2]
[338243776,1726420243249,-200.0,0.00023,2]
[338243777,1726420243259,-150.0,0.00023002,2]
[338243778,1726420243268,-168.0,0.00023014,2]
[338243779,1726420243278,-487.28831799,0.00023031,2]
[338243780,1726420243288,-382.71500942,0.00023085,2]
[338243781,1726420243298,-150.0,0.00023131,2]
[338243782,1726420243307,-420.0,0.00023163,2]
[338243783,1726420243316,-816.09513243,0.0002318,2]
[338243819,1726420907084,-300.0,0.00021728,2]
[338243820,1726420907127,-300.0,0.00021728,2]
[338243821,1726420907163,-24900.0,0.00021729,2]
[338243840,1726421322757,333.04240939,0.0001,2]
[338243841,1726421345151,-925.4997523,0.000167,2]
[338243877,1726421432045,-168.7341881,0.00021444,2]
[338243879,1726421432054,-168.73418793,0.00021444,2]
[338243881,1726421432064,-168.73418793,0.00021444,2]
[338243883,1726421432073,-168.73418793,0.00021444,2]
[338243885,1726421432083,-168.73418793,0.00021444,2]
[338243887,1726421432094,-168.73418793,0.00021444,2]
[338243889,1726421432104,-300.0,0.00021544,2]
[338243891,1726421432115,-300.0,0.00021544,2]
[338243893,1726421432124,-4054.43934603,0.00021545,2]
[338243896,1726421432141,-361.64308633,0.00021545,2]
[338243947,1726421438283,-168.73418793,0.00021444,2]
[338243948,1726421438293,-20483.91756764,0.00021545,2]
[338243949,1726421438304,-2499.1524561,0.00021704,2]
[338243950,1726421438314,-250.0,0.00022052,2]
[338243951,1726421438323,-250.0,0.00022113,2]
[338243952,1726421438334,-250.0,0.00022173,2]
[338243953,1726421438345,-250.0,0.00022234,2]
[338243954,1726421438357,-250.0,0.00022294,2]
[338243955,1726421438368,-250.0,0.00022355,2]
[338243956,1726421438378,-153.0,0.000224,2]
[338243957,1726421438387,-250.0,0.00022415,2]
[338243958,1726421438397,-250.0,0.00022476,2]
[338243959,1726421438408,-250.0,0.00022536,2]
[338243960,1726421438418,-250.0,0.00022597,2]
[338243961,1726421438429,-7129.84878974,0.00022606,2]
[338243962,1726421438439,-250.0,0.00022657,2]
[338243963,1726421438448,-250.0,0.00022718,2]
[338243964,1726421438459,-7129.84878974,0.00022748,2]
[338243965,1726421438470,-250.0,0.00022778,2]
[338243966,1726421438481,-250.0,0.00022839,2]
[338243967,1726421438490,-165.0,0.00022867,2]
[338243968,1726421438501,-250.0,0.00022899,2]
[338243969,1726421438511,-6916.8377674,0.000229,2]
[338243970,1726421438520,-250.0,0.0002296,2]
[338243971,1726421438529,-452.99999973,0.00023,2]
[338243972,1726421438539,-410.847389,0.00023014,2]
[338243973,1726421438551,-153.0,0.00023014,2]
[338243974,1726421438561,-250.0,0.0002302,2]
[338243975,1726421438571,-250.0,0.00023081,2]
[338243976,1726421438581,-250.0,0.00023141,2]
[338243977,1726421438591,-500.0,0.0002318,2]
[338243978,1726421438600,-27597.76006397,0.000232,3]
[338243979,1726421438610,-250.0,0.00023202,2]
[338243980,1726421438619,-2071.69352626,0.0002323,2]
[338243981,1726421438628,-2071.69352625,0.00023238,2]
[338243982,1726421438638,-2071.69352625,0.00023246,2]
[338243983,1726421438647,-849.98448107,0.0002325,2]
[338243984,1726421438657,-2071.69352625,0.00023253,2]
[338243985,1726421438666,-2071.69352625,0.00023261,2]
[338243986,1726421438679,-150.112233,0.000233,5]
[338243987,1726421438689,-192.357,0.000233,3]
[338243988,1726421438698,-187.16,0.000233,3]
[338243989,1726421438708,-1792.39351295,0.0002332,5]
[338243990,1726421438718,-19496.48832815,0.0002332,3]
[338243991,1726421438761,-33871.41500075,0.0002332,3]
[338243992,1726421438770,-500.0,0.0002333,2]
[338243993,1726421438780,-500.0,0.0002333,2]
[338243994,1726421438789,-500.0,0.0002333,2]
[338243995,1726421438799,-349.22497215,0.0002333,2]
[338243996,1726421438809,-80051.8549933,0.00023331,3]
[338243997,1726421438818,-26683.9516644,0.00023335,3]
[338243998,1726421438830,-151.0,0.00023335,7]
[338243999,1726421438839,-151.0,0.00023335,7]
[338244000,1726421438848,-58344.97915423,0.00023335,5]
[338244001,1726421438858,-80051.8549933,0.00023335,3]
[338244002,1726421438867,-151.0,0.00023336,7]
[338244003,1726421438876,-151.0,0.00023336,7]
[338244004,1726421438885,-151.0,0.00023336,7]
[338244005,1726421438894,-151.0,0.00023336,7]
[338244006,1726421438904,-212.08086617,0.00023344,2]
[338244007,1726421438913,-500.0,0.00023344,2]
[338244008,1726421438925,-500.0,0.00023344,2]
[338244009,1726421438934,-500.0,0.00023344,2]
[338244010,1726421438945,-335.85355896,0.00023344,2]
[338244011,1726421438954,-151.0,0.00023345,7]
[338244012,1726421438964,-151.0,0.00023345,7]
[338244013,1726421438973,-151.0,0.00023345,7]
[338244014,1726421438983,-151.0,0.00023345,7]
[338244015,1726421438992,-151.0,0.00023345,7]
[338244016,1726421439002,-151.0,0.00023345,7]
[338244017,1726421439012,-151.0,0.00023345,7]
[338244018,1726421439021,-262.764672,0.00023345,7]
[338244019,1726421439030,-899.609772,0.00023345,7]
[338244020,1726421439040,-899.609772,0.00023345,7]
[338244021,1726421439050,-899.609772,0.00023345,7]
[338244022,1726421439059,-899.609772,0.00023345,7]
[338244023,1726421439069,-899.609772,0.00023345,7]
[338244024,1726421439079,-899.609772,0.00023345,7]
[338244025,1726421439088,-151.0,0.00023345,7]
[338244026,1726421439098,-151.0,0.00023345,7]
[338244027,1726421439107,-151.0,0.00023345,7]
[338244028,1726421439117,-245.920635,0.00023345,7]
[338244029,1726421439126,-151.0,0.00023345,7]
[338244030,1726421439135,-151.0,0.00023345,7]
[338244031,1726421439145,-151.0,0.00023345,7]
[338244032,1726421439155,-203.389111,0.00023345,7]
[338244033,1726421439165,-151.0,0.00023345,7]
[338244034,1726421439178,-180.258395,0.00023345,7]
[338244035,1726421439188,-180.258395,0.00023345,7]
[338244036,1726421439199,-180.258395,0.00023345,7]
[338244037,1726421439209,-151.0,0.00023345,7]
[338244038,1726421439219,-151.0,0.00023345,7]
[338244039,1726421439229,-151.0,0.00023345,7]
[338244040,1726421439240,-180.258395,0.00023345,7]
[338244041,1726421439250,-151.0,0.00023345,7]
[338244042,1726421439259,-180.258395,0.00023345,7]
[338244043,1726421439270,-180.258395,0.00023345,7]
[338244044,1726421439279,-240.357008,0.00023345,7]
[338244045,1726421439289,-683.110486,0.00023345,7]
[338244046,1726421439298,-683.110486,0.00023345,7]
[338244047,1726421439310,-683.110486,0.00023345,7]
[338244048,1726421439321,-683.110486,0.00023345,7]
[338244049,1726421439330,-683.110486,0.00023345,7]
[338244050,1726421439342,-683.110486,0.00023345,7]
[338244051,1726421439351,-155.684,0.00023345,7]
[338244052,1726421439360,-151.0,0.00023345,7]
[338244053,1726421439369,-151.0,0.00023345,7]
[338244054,1726421439378,-151.0,0.00023345,7]
[338244055,1726421439387,-151.0,0.00023345,7]
[338244056,1726421439397,-151.0,0.00023345,7]
[338244057,1726421439406,-151.0,0.00023345,7]
[338244058,1726421439416,-151.0,0.00023345,7]
[338244059,1726421439427,-151.0,0.00023345,7]
[338244060,1726421439436,-151.0,0.00023345,7]
[338244061,1726421439445,-151.0,0.00023345,7]
[338244062,1726421439454,-151.0,0.00023345,7]
[338244063,1726421439463,-151.0,0.00023345,7]
[338244064,1726421439472,-196.688904,0.00023345,7]
[338244065,1726421439481,-151.0,0.00023345,7]
[338244066,1726421439490,-151.0,0.00023345,7]
[338244067,1726421439499,-151.0,0.00023345,7]
[338244068,1726421439509,-151.0,0.00023345,7]
[338244069,1726421439518,-151.0,0.0002335,7]
[338244070,1726421439527,-151.0,0.0002335,7]
[338244071,1726421439537,-198.611,0.0002335,7]
[338244072,1726421439546,-198.611,0.0002335,7]
[338244073,1726421439556,-151.0,0.0002335,7]
[338244074,1726421439567,-151.0,0.0002335,7]
[338244075,1726421439578,-1312.253104,0.0002335,7]
[338244076,1726421439588,-1312.253104,0.0002335,7]
[338244077,1726421439600,-151.0,0.0002335,7]
[338244078,1726421439609,-151.0,0.0002335,7]
[338244079,1726421439619,-151.0,0.0002335,7]
[338244080,1726421439629,-151.0,0.0002335,7]
[338244081,1726421439638,-151.0,0.0002335,7]
[338244082,1726421439649,-899.609772,0.0002335,7]
[338244083,1726421439659,-899.609772,0.0002335,7]
[338244084,1726421439670,-899.609772,0.0002335,7]
[338244085,1726421439681,-899.609772,0.0002335,7]
[338244086,1726421439690,-151.0,0.0002335,7]
[338244087,1726421439699,-151.0,0.0002335,7]
[338244088,1726421439709,-180.258395,0.0002335,7]
[338244089,1726421439719,-180.258395,0.0002335,7]
[338244091,1726421439730,-151.0,0.0002335,7]
[338244092,1726421439740,-151.0,0.0002335,7]
[338244093,1726421439749,-180.258395,0.0002335,7]
[338244094,1726421439757,-180.258395,0.0002335,7]
[338244095,1726421439766,-683.110486,0.0002335,7]
[338244096,1726421439775,-683.110486,0.0002335,7]
[338244097,1726421439784,-683.110486,0.0002335,7]
[338244098,1726421439794,-683.110486,0.0002335,7]
[338244099,1726421439803,-151.0,0.0002335,7]
[338244100,1726421439812,-151.0,0.0002335,7]
[338244101,1726421439821,-151.0,0.0002335,7]
[338244102,1726421439831,-151.0,0.0002335,7]
[338244103,1726421439840,-151.0,0.0002335,7]
[338244104,1726421439849,-151.0,0.0002335,7]
[338244105,1726421439858,-151.0,0.0002335,7]
[338244106,1726421439867,-151.0,0.0002335,7]
[338244110,1726421440106,-151.0,0.00023355,7]
[338244111,1726421440121,-151.0,0.00023355,7]
[338244112,1726421440131,-151.0,0.00023355,7]
[338244113,1726421440141,-1312.253104,0.00023355,7]
[338244114,1726421440152,-1312.253104,0.00023355,7]
[338244115,1726421440161,-151.0,0.00023355,7]
[338244116,1726421440171,-151.0,0.00023355,7]
[338244117,1726421440183,-151.0,0.00023355,7]
[338244118,1726421440199,-899.609772,0.00023355,7]
[338244119,1726421440208,-899.609772,0.00023355,7]
[338244120,1726421440218,-151.0,0.00023355,7]
[338244121,1726421440228,-180.258395,0.00023355,7]
[338244122,1726421440239,-151.0,0.00023355,7]
[338244123,1726421440249,-180.258395,0.00023355,7]
[338244124,1726421440258,-683.110486,0.00023355,7]
[338244125,1726421440268,-683.110486,0.00023355,7]
[338244127,1726421440277,-151.0,0.00023355,7]
[338244129,1726421440287,-151.0,0.00023355,7]
[338244130,1726421440296,-151.0,0.00023355,7]
[338244131,1726421440306,-151.0,0.00023355,7]
[338244132,1726421440316,-151.0,0.00023359,7]
[338244133,1726421440325,-198.611,0.00023359,7]
[338244134,1726421440335,-198.611,0.00023359,7]
[338244135,1726421440344,-151.0,0.00023359,7]
[338244136,1726421440353,-1312.253104,0.00023359,7]